bitfinex-derivatives/quotes_ETHF0:USTF0_20210402
["timestamp","ask_amount","ask_price","bid_price","bid_amount"]
[1617403228939,16.88915,2091.2,2090.8,0.17846502]
[1617403230141,16.88915,2091.2,2091.1,2.90695]
[1617403230540,16.88915,2091.2,2091.1,3.08539213]
[1617403232044,14.90695,2091.2,2091.1,3.08539213]
[1617403233241,14.90695,2091.2,2091.1,0.17844213]
[1617403233642,14.90695,2091.2,2091.0,0.17873059]
[1617403233842,16.57205,2091.2,2091.0,0.17873059]
[1617403234742,16.57205,2091.2,2090.9,0.17876203]
[1617403234942,16.57205,2091.2,2091.1,0.17875253]
[1617403235343,16.57205,2091.2,2090.8,5.16218522]
[1617403235742,16.57205,2091.2,2091.1,0.17881383]
[1617403235943,16.57205,2091.2,2090.9,0.17881678]
[1617403236343,16.57205,2091.2,2091.1,0.17881849]
[1617403236644,16.57205,2091.2,2090.8,0.1788204]
[1617403236943,16.57205,2091.2,2091.1,0.17882159]
[1617403237343,16.57205,2091.2,2090.9,0.17882702]
[1617403237744,16.57205,2091.2,2090.7,0.1788267]
[1617403238145,2.90695,2090.8,2090.7,0.1788267]
[1617403238945,2.90695,2090.8,2090.5,0.17885679]
[1617403242047,2.90695,2090.8,2090.5,5.1671569]
[1617403242548,2.90695,2090.8,2090.6,0.1788471]
[1617403249968,2.90695,2090.8,2090.5,0.17909693]
[1617403250169,2.90695,2090.8,2090.7,0.17909329]
[1617403250569,2.90695,2090.8,2090.5,0.17908971]
[1617403250968,2.90695,2090.8,2090.7,0.17909186]
[1617403251169,2.90695,2090.8,2090.5,0.17909725]
[1617403251671,2.90695,2090.8,2090.7,0.17909705]
[1617403251870,2.90695,2090.8,2090.5,0.17909256]
[1617403252271,2.90695,2090.8,2090.7,0.17909041]
[1617403252670,2.90695,2090.8,2090.6,0.17913188]
[1617403252871,2.90695,2090.8,2090.5,0.17913186]
[1617403256783,2.90695,2090.8,2090.5,60.44383186]
[1617403257184,2.90695,2090.8,2090.6,0.17918705]
[1617403260486,2.90695,2090.8,2090.3,0.17923678]
[1617403260786,2.90695,2090.8,2090.7,0.17923761]
[1617403261286,2.90695,2090.8,2090.3,0.17923991]
[1617403262590,2.90695,2090.4,2090.3,0.17923991]
[1617403264994,2.90695,2090.4,2090.2,0.17925041]
[1617403265195,2.90695,2090.4,2090.3,0.17925064]
[1617403265495,2.90695,2090.4,2090.2,5.17551416]
[1617403265794,2.90695,2090.4,2090.3,0.1792534]
[1617403266496,2.90695,2090.4,2090.3,3.0862034]
[1617403267097,2.90695,2090.4,2090.3,8.08112336]
[1617403270498,2.90695,2090.4,2090.3,3.0862034]
[1617403272201,2.90695,2090.4,2090.3,8.08037918]
[1617403272904,2.90695,2090.4,2090.3,3.0862034]
[1617403274504,1.7319,2090.9,2090.3,3.0862034]
[1617403274705,2.90695,2090.5,2090.3,3.0862034]
[1617403274905,2.90695,2090.5,2090.4,5.17337848]
[1617403275306,2.90695,2090.5,2090.4,0.17917554]
[1617403276208,2.90695,2090.5,2090.4,6.29010096]
[1617403280313,2.90695,2090.5,2090.4,0.17917554]
[1617403281817,2.90695,2090.5,2090.4,6.28821227]
[1617403282018,2.90695,2090.5,2090.4,0.17917554]
[1617403282420,2.90695,2090.5,2090.4,6.28891824]
[1617403283019,4.82145,2090.5,2090.4,6.28891824]
[1617403284820,4.82145,2090.5,2090.4,0.17917554]
[1617403288021,4.82145,2090.5,2090.4,6.29246215]
[1617403289524,4.82145,2090.5,2090.4,0.17917554]
[1617403291326,69.3275,2091.0,2090.4,0.17917554]
[1617403291930,69.3275,2091.0,2090.9,4.99770664]
[1617403292329,69.3275,2091.0,2090.7,6.10830812]
[1617403292731,69.3275,2091.0,2090.9,5.17778034]
[1617403293130,69.3275,2091.0,2090.9,4.99853763]
[1617403293330,69.3275,2091.0,2090.9,5.17809512]
[1617403294730,72.23445,2091.0,2090.9,5.17809512]
[1617403295230,72.23445,2091.0,2090.9,0.17955749]
[1617403296232,72.23445,2091.0,2090.9,5.17763111]
[1617403297331,72.23445,2091.0,2090.9,0.17955749]
[1617403302441,72.23445,2091.0,2090.8,0.17957635]
[1617403302943,72.23445,2091.0,2090.9,0.17957926]
[1617403303143,72.23445,2091.0,2090.8,0.17957594]
[1617403303443,72.23445,2091.0,2090.9,0.17957467]
[1617403303844,72.23445,2091.0,2090.8,0.17957508]
[1617403305245,2.90695,2091.0,2090.8,0.17957508]
[1617403305447,2.90695,2091.0,2090.8,60.17677508]
[1617403305645,2.90695,2091.0,2090.8,65.17704159]
[1617403305845,2.90695,2091.0,2090.9,4.99933553]
[1617403306045,2.90695,2091.0,2090.9,7.08515933]
[1617403306553,2.90695,2091.0,2090.9,2.0858238]
[1617403306949,2.90695,2091.0,2090.9,7.08451104]
[1617403308350,2.90695,2091.0,2090.9,2.0858238]
[1617403308949,2.90695,2091.0,2090.9,0.1795238]
[1617403309350,2.90695,2091.0,2090.9,5.17891147]
[1617403312351,2.90695,2091.0,2090.9,0.1795238]
[1617403313452,2.90695,2091.0,2090.8,0.17946728]
[1617403313651,2.90695,2091.0,2090.9,0.17947537]
[1617403314454,2.90695,2091.0,2090.7,0.17948252]
[1617403314852,2.90695,2091.0,2090.9,0.17947735]
[1617403315052,2.90695,2091.0,2090.7,0.17947096]
[1617403315653,2.90695,2091.0,2090.9,0.17943316]
[1617403315953,2.90695,2091.0,2090.7,0.17943822]
[1617403317555,2.90695,2091.0,2090.6,5.19164071]
[1617403317956,2.90695,2091.0,2090.8,0.17942276]
[1617403318359,2.90695,2091.0,2090.7,0.17942836]
[1617403322660,2.90695,2091.0,2090.7,5.19376006]
[1617403323062,2.90695,2091.0,2090.8,0.17943026]
[1617403323262,2.90695,2091.0,2090.9,5.01980117]
[1617403323562,2.90695,2091.0,2090.8,5.20040747]
[1617403323962,2.90695,2091.0,2090.9,0.17943105]
[1617403326667,3.86065,2091.0,2090.9,0.17943105]
[1617403327067,2.90695,2091.0,2090.9,0.17943105]
[1617403327269,2.90695,2091.0,2090.8,0.17956063]
[1617403327669,2.0,2090.9,2090.6,4.58648982]
[1617403327870,2.0,2090.9,2090.6,2.72158982]
[1617403328669,2.0,2090.9,2090.3,6.14009898]
[1617403328869,2.90695,2090.4,2090.3,6.14009898]
[1617403329269,4.52235,2090.4,2090.3,6.14009898]
[1617403331471,4.52235,2090.4,2089.9,7.25482338]
[1617403331672,2.90695,2090.4,2089.9,7.25482338]
[1617403331872,2.90695,2090.4,2090.0,7.25259405]
[1617403332874,33.5743,2091.1,2090.3,6.13842112]
[1617403333273,33.5743,2091.1,2090.4,0.1771779]
[1617403334173,33.5743,2091.1,2090.4,6.31508757]
[1617403334473,33.5743,2091.1,2090.5,0.17715806]
[1617403334974,2.90695,2090.6,2090.5,0.17715806]
[1617403337379,4.33175,2090.6,2090.5,0.17715806]
[1617403339181,4.33175,2090.6,2090.5,6.31408299]
[1617403340882,4.33175,2090.6,2090.5,6.13692493]
[1617403341182,4.33175,2090.6,2090.5,6.31405207]
[1617403342682,4.33175,2090.6,2090.5,0.17712714]
[1617403344685,4.33175,2090.6,2090.5,6.31425808]
[1617403345889,4.33175,2090.6,2090.5,0.17712714]
[1617403349390,4.33175,2090.6,2090.5,6.31480194]
[1617403354797,4.33175,2090.6,2090.5,0.17712714]
[1617403355197,4.33175,2090.6,2090.2,0.17712568]
[1617403355398,2.90695,2090.3,2090.2,0.17712568]
[1617403356700,2.90695,2090.3,2090.2,7.43352964]
[1617403359405,2.90695,2090.3,2090.2,0.17712568]
[1617403359605,2.90695,2090.3,2090.2,7.43746206]
[1617403360005,2.90695,2090.3,2090.2,0.17712568]
[1617403360505,12.0,2091.2,2090.2,0.17712568]
[1617403360706,12.0,2091.2,2090.2,1.39132568]
[1617403361206,12.0,2091.2,2091.1,5.02304086]
[1617403361408,14.90695,2091.2,2091.1,5.02304086]
[1617403361607,14.90695,2091.2,2091.1,0.17702564]
[1617403363809,14.90695,2091.2,2091.0,0.17703487]
[1617403364211,14.90695,2091.2,2091.0,5.20227064]
[1617403364409,14.90695,2091.2,2091.1,0.17703054]
[1617403369017,14.90695,2091.2,2091.0,0.17713923]
[1617403369721,14.90695,2091.2,2090.9,0.17714692]
[1617403370119,14.90695,2091.2,2091.1,0.17714796]
[1617403370319,14.90695,2091.2,2091.0,0.17715089]
[1617403370720,2.0,2091.1,2090.9,0.17714686]
[1617403371019,2.0,2091.1,2090.8,5.02910936]
[1617403371319,2.0,2091.1,2090.9,0.17714891]
[1617403374120,2.0,2091.1,2090.8,0.1772107]
[1617403374523,2.0,2091.1,2091.0,0.17721224]
[1617403374922,2.0,2091.1,2090.9,0.1772129]
[1617403375320,32.0,2091.1,2091.0,0.17721575]
[1617403375520,32.0,2091.1,2090.8,0.1772308]
[1617403376321,32.0,2091.1,2090.7,0.17724203]
[1617403376521,32.0,2091.1,2090.6,0.17724349]
[1617403376721,70.8668,2090.7,2090.6,0.17724349]
[1617403376921,72.1501,2090.7,2090.5,5.03617669]
[1617403377121,72.1501,2090.7,2090.6,0.17724256]
[1617403377525,75.05705,2090.7,2090.6,0.17724256]
[1617403379826,4.19025,2090.7,2090.6,0.17724256]
[1617403380029,4.19025,2090.7,2090.6,5.21235501]
[1617403380227,2.90695,2090.7,2090.6,5.21235501]
[1617403381027,2.90695,2090.7,2090.6,0.17724256]
[1617403382127,2.90695,2090.7,2090.6,6.32805606]
[1617403383229,2.90695,2090.7,2090.6,0.17724256]
[1617403383428,2.90695,2090.7,2090.6,2.90695]
[1617403383829,2.90695,2090.7,2090.6,3.08413456]
[1617403384831,2.90695,2090.7,2090.6,9.23535764]
[1617403385234,2.90695,2090.7,2090.6,3.08413456]
[1617403385433,2.90695,2090.7,2090.6,0.17718456]
[1617403385634,2.90695,2090.7,2090.6,6.32962655]
[1617403385835,2.90695,2090.7,2090.6,6.15244199]
[1617403386235,2.90695,2090.7,2090.6,6.3296504]
[1617403387035,2.90695,2090.7,2090.6,0.17720841]
[1617403390638,2.90695,2090.7,2090.6,5.21277633]
[1617403391939,2.90695,2090.7,2090.6,5.03556792]
[1617403392140,32.90695,2090.7,2090.6,5.21288502]
[1617403392341,32.90695,2090.7,2090.6,4.01278502]
[1617403392541,34.90695,2090.7,2090.6,0.1773171]
[1617403393142,34.90695,2090.7,2090.3,0.17764011]
[1617403393342,34.90695,2090.7,2090.6,0.17763876]
[1617403393742,34.90695,2090.7,2090.4,0.17763775]
[1617403394143,34.90695,2090.7,2090.2,0.17763646]
[1617403395646,2.90695,2090.3,2090.2,0.17763646]
[1617403396947,2.90695,2090.3,2090.2,6.32777592]
[1617403397549,2.90695,2090.3,2090.2,0.17763646]
[1617403397951,2.90695,2090.3,2090.1,0.17758677]
[1617403398350,2.90695,2090.3,2090.1,7.43875762]
[1617403398752,2.90695,2090.3,2090.2,0.17757025]
[1617403398951,2.90695,2090.3,2090.2,7.4451565]
[1617403399352,2.90695,2090.3,2090.2,0.17757025]
[1617403400352,2.90695,2090.3,2090.2,7.44802947]
[1617403401152,2.90695,2090.3,2090.2,0.17757025]
[1617403401558,2.90695,2090.3,2090.1,0.17761597]
[1617403402362,2.90695,2090.3,2090.2,7.27264153]
[1617403402858,2.90695,2090.3,2090.2,7.4502609]
[1617403403460,2.90695,2090.3,2090.2,0.17761937]
[1617403403761,2.90695,2090.3,2090.1,0.17760655]
[1617403405660,2.90695,2090.6,2090.1,0.17760655]
[1617403406259,2.90695,2090.6,2090.4,7.27100365]
[1617403406459,2.90695,2090.6,2090.5,7.26927977]
[1617403406658,2.90695,2090.6,2090.5,7.44686]
[1617403407659,2.90695,2090.6,2090.5,10.35381]
[1617403408161,2.90695,2090.6,2090.5,3.08453023]
[1617403408861,2.90695,2090.6,2090.5,10.35364143]
[1617403411965,2.89655,2090.6,2090.5,10.35364143]
[1617403416671,2.89655,2090.6,2090.5,3.08453023]
[1617403417271,73.2166,2091.0,2090.5,3.08453023]
[1617403417472,73.2166,2091.0,2090.6,0.17732169]
[1617403417671,73.2166,2091.0,2090.9,2.90695]
[1617403417872,73.2166,2091.0,2090.9,4.70485]
[1617403418272,73.2166,2091.0,2090.9,4.88216309]
[1617403418873,2.0,2092.5,2090.9,12.14447226]
[1617403419073,2.0,2092.9,2090.9,12.14447226]
[1617403419475,2.0,2092.9,2091.0,0.17727996]
[1617403419677,2.90695,2091.1,2091.0,0.17727996]
[1617403426485,2.90695,2091.1,2091.0,1.14137996]
[1617403426685,2.90695,2091.1,2091.0,0.17727996]
[1617403429991,72.0517,2092.2,2091.0,0.17727996]
[1617403430190,72.0517,2092.2,2091.0,1.85487996]
[1617403430791,72.0517,2092.2,2091.1,0.1768558]
[1617403431892,2.90695,2091.3,2091.1,0.1768558]
[1617403432693,72.0517,2092.2,2091.1,0.1768558]
[1617403433894,2.90695,2091.5,2091.1,0.1768558]
[1617403434693,2.90695,2091.5,2091.0,8.92311459]
[1617403435096,2.90695,2091.5,2091.1,0.17641545]
[1617403437701,2.90695,2091.5,2091.1,1.13781545]
[1617403439003,2.90695,2091.5,2091.1,0.17641545]
[1617403442308,2.90695,2091.5,2091.1,6.28725396]
[1617403442510,2.90695,2091.5,2091.1,6.11083851]
[1617403442909,2.90695,2091.5,2091.1,6.28731395]
[1617403443111,2.90695,2091.5,2091.1,5.18000115]
[1617403443410,2.90695,2091.5,2091.1,0.17647544]
[1617403443809,2.90695,2091.5,2091.1,5.16955219]
[1617403444007,14.90695,2091.2,2091.1,5.16955219]
[1617403444809,12.0,2091.2,2091.1,5.16955219]
[1617403445012,12.0,2091.2,2091.1,0.17647544]
[1617403445212,12.0,2091.2,2091.0,0.17643954]
[1617403445411,12.0,2091.2,2091.0,6.27576948]
[1617403445813,12.0,2091.2,2091.1,0.17643044]
[1617403446614,12.0,2091.2,2091.1,6.27328681]
[1617403447015,12.0,2091.2,2091.1,0.17643044]
[1617403449017,12.0,2091.2,2091.1,6.26510383]
[1617403449919,12.0,2091.2,2091.1,0.17643044]
[1617403450216,12.0,2091.2,2091.1,6.09131881]
[1617403450617,12.0,2091.2,2091.1,6.26774984]
[1617403451316,12.0,2091.2,2091.1,0.17643103]
[1617403454818,12.0,2091.2,2091.1,6.27204502]
[1617403460030,12.0,2091.2,2091.1,0.17643103]
[1617403461833,11.0529,2091.2,2091.1,7.36650919]
[1617403462043,10.1131,2091.2,2091.1,7.36650919]
[1617403462257,5.0721,2091.2,2091.1,0.17643103]
[1617403462451,2.90695,2092.4,2091.1,0.17643103]
[1617403462651,2.90695,2092.4,2091.1,8.46518962]
[1617403462853,63.0903,2093.7,2091.1,8.46518962]
[1617403463049,4.571,2094.5,2092.2,4.97189685]
[1617403463249,4.571,2094.5,2092.2,6.43149685]
[1617403463449,4.571,2094.5,2092.5,4.9694973]
[1617403463839,4.571,2094.5,2092.6,0.17650068]
[1617403464038,4.571,2094.5,2093.4,2.90695]
[1617403464439,4.571,2094.5,2093.5,0.17650192]
[1617403464639,4.571,2094.5,2093.4,2.90695]
[1617403465439,71.5567,2094.4,2093.6,55.9272]
[1617403466039,2.90695,2093.7,2093.6,55.9272]
[1617403468543,2.90695,2093.7,2093.4,2.90695]
[1617403469144,2.90695,2093.7,2093.5,0.17647411]
[1617403469744,2.90695,2093.7,2093.4,2.90695]
[1617403492069,66.3542,2093.5,2093.4,2.90695]
[1617403492267,66.3542,2093.5,2093.1,2.90695]
[1617403494272,66.3542,2093.5,2093.4,2.90695]
[1617403494471,66.3542,2093.5,2093.4,4.20235]
[1617403495270,8.5695,2096.8,2093.4,4.20235]
[1617403495271,2.0,2094.8,2093.4,4.20235]
[1617403496372,2.90695,2093.5,2093.4,4.20235]
[1617403496973,2.90695,2093.5,2093.4,2.90695]
[1617403506088,1.5006,2094.5,2093.4,2.90695]
[1617403506288,2.0,2095.0,2094.2,2.90695]
[1617403506888,2.0,2095.4,2094.2,2.90695]
[1617403507688,2.9651,2095.4,2094.2,2.90695]
[1617403508091,2.0,2095.4,2094.2,2.90695]
[1617403508290,2.90695,2094.3,2094.2,2.90695]
[1617403510494,2.90695,2094.3,2094.2,63.11635]
[1617403513897,2.90695,2094.3,2094.2,2.90695]
[1617403515899,2.90695,2094.3,2094.2,4.48015]
[1617403518905,77.1061,2095.1,2094.2,4.65570655]
[1617403519505,77.1061,2095.1,2094.3,0.17556397]
[1617403520406,77.1061,2095.1,2094.8,2.90695]
[1617403522518,2.90695,2094.9,2094.8,2.90695]
[1617403524826,2.90695,2094.9,2094.8,3.08217081]
[1617403530136,4.56985,2094.9,2094.8,0.17522081]
[1617403530534,4.56985,2094.9,2094.5,2.90695]
[1617403531134,4.56985,2094.9,2094.6,0.17519962]
[1617403537348,2.90695,2094.9,2094.6,0.17519962]
[1617403538449,2.90695,2094.9,2094.8,2.90695]
[1617403539151,2.90695,2094.9,2094.8,3.08107045]
[1617403540552,2.90695,2094.9,2094.8,2.90695]
[1617403541253,2.90695,2094.9,2094.8,3.08130429]
[1617403544154,4.85945,2094.9,2094.8,2.90695]
[1617403548157,4.85945,2094.9,2094.7,54.5966]
[1617403548558,4.85945,2094.9,2094.4,2.90695]
[1617403548857,4.85945,2094.9,2094.5,0.17428953]
[1617403550259,2.0,2094.8,2094.5,0.17428953]
[1617403550459,2.0,2094.8,2093.9,0.17463043]
[1617403550659,2.90695,2094.0,2093.9,0.17463043]
[1617403550959,4.87265,2094.0,2093.8,2.90695]
[1617403551158,4.87265,2094.0,2093.9,0.17470756]
[1617403561275,4.77265,2094.0,2093.9,0.17470756]
[1617403572485,4.77265,2094.0,2093.3,4.9447832]
[1617403572486,4.77265,2094.0,2093.4,0.17566253]
[1617403572686,2.90695,2093.5,2093.4,0.17566253]
[1617403572886,4.88925,2093.5,2093.4,0.17566253]
[1617403574086,6.88925,2093.5,2093.4,0.17566253]
[1617403574288,6.88925,2093.5,2093.4,6.253e-05]
[1617403574687,6.88925,2093.5,2093.0,0.17304218]
[1617403574887,6.88925,2093.5,2092.6,6.05528545]
[1617403574888,6.88925,2093.5,2092.9,0.173056]
[1617403575287,6.88925,2093.5,2093.1,0.17306243]
[1617403575687,6.88925,2093.5,2093.0,0.17306366]
[1617403576087,6.88925,2093.5,2093.2,0.17306104]
[1617403576287,6.88925,2093.5,2092.7,0.17306662]
[1617403576689,3.9823,2093.5,2093.3,0.17306522]
[1617403576886,3.9823,2093.5,2092.7,0.17306483]
[1617403577290,1.82693819,2093.4,2092.6,4.95855589]
[1617403577488,2.77453819,2093.4,2092.6,4.95855589]
[1617403578190,2.77453819,2093.4,2091.1,9.3659212]
[1617403578191,2.77453819,2093.4,2092.5,4.9601789]
[1617403578590,2.77453819,2093.4,2092.0,4.95258518]
[1617403578790,2.90695,2092.1,2092.0,7.85953518]
[1617403580291,2.90695,2092.1,2092.0,2.90695]
[1617403582495,2.90695,2092.1,2092.0,3.07625697]
[1617403588001,4.35965,2092.1,2092.0,3.07625697]
[1617403589305,4.35965,2092.1,2092.0,2.90695]
[1617403589804,4.35965,2092.1,2091.2,4.94741381]
[1617403590205,4.35965,2092.1,2091.3,0.16897755]
[1617403590806,1.4527,2092.1,2091.4,2.90695]
[1617403591407,1.4527,2092.1,2090.9,4.95149369]
[1617403591907,1.4527,2092.1,2091.0,0.16898215]
[1617403592709,1.4527,2092.1,2090.9,0.16899831]
[1617403592909,1.4527,2092.1,2091.2,2.90695]
[1617403593309,0.9608,2092.7,2091.2,2.90695]
[1617403594912,2.90695,2091.3,2091.2,2.90695]
[1617403595313,2.90695,2091.3,2090.6,4.95202939]
[1617403595515,2.90695,2091.3,2091.1,59.786]
[1617403596920,2.90695,2091.3,2091.1,62.69295]
[1617403598622,2.90695,2091.3,2091.1,2.90695]
[1617403599424,69.6232,2091.9,2091.1,2.90695]
[1617403599624,0.9608,2092.7,2091.1,2.90695]
[1617403600824,0.9608,2092.7,2091.7,2.90695]
[1617403602529,33.8774,2092.8,2091.7,2.90695]
[1617403602933,2.90695,2091.8,2091.7,2.90695]
[1617403613443,2.90695,2091.8,2091.7,3.07731166]
[1617403614243,2.0,2093.1,2091.7,3.07731166]
[1617403614443,2.0,2093.1,2091.7,4.60511166]
[1617403614645,2.0,2093.1,2091.8,0.17034973]
[1617403614944,2.0,2093.1,2092.4,2.90695]
[1617403616944,2.90695,2092.5,2092.4,2.90695]
[1617403619147,72.9856,2093.7,2092.4,2.90695]
[1617403619348,72.9856,2093.7,2092.4,4.81175]
[1617403619750,70.4146,2093.7,2092.4,4.81175]
[1617403620348,2.0,2093.6,2092.4,4.81175]
[1617403621048,2.0,2093.6,2092.9,2.90695]
[1617403623051,2.90695,2093.0,2092.9,2.90695]
[1617403627259,2.90695,2093.0,2092.9,3.07777637]
[1617403631361,4.64395,2093.0,2092.9,3.07777637]
[1617403631762,4.64395,2093.0,2092.9,0.17082637]
[1617403631962,4.64395,2093.0,2091.9,0.17129925]
[1617403632363,4.64395,2093.0,2092.9,0.17131496]
[1617403632566,4.64395,2093.0,2091.7,4.9453653]
[1617403632967,4.64395,2093.0,2091.8,0.17131147]
[1617403633167,1.737,2093.0,2092.2,2.90695]
[1617403633568,1.737,2093.0,2092.3,0.17131823]
[1617403634568,64.7087,2092.9,2092.3,0.17131823]
[1617403635171,2.90695,2092.4,2092.3,0.17131823]
[1617403635369,4.13065,2092.4,2092.3,0.17131823]
[1617403636571,4.13065,2092.4,2091.7,0.171326]
[1617403636772,4.13065,2092.4,2092.3,0.17132681]
[1617403637172,4.13065,2092.4,2091.7,0.1713253]
[1617403637373,1.2237,2092.4,2092.0,2.90695]
[1617403637775,1.2237,2092.4,2092.1,0.17141545]
[1617403639275,2.90695,2092.2,2092.1,0.17141545]
[1617403641578,64.7087,2092.9,2092.1,0.17141545]
[1617403643384,64.7087,2092.9,2092.1,5.13093048]
[1617403643584,64.7087,2092.9,2092.3,2.90695]
[1617403643785,64.7087,2092.9,2092.6,62.1529]
[1617403643988,64.7087,2092.9,2092.7,0.17139004]
[1617403645490,2.90695,2092.8,2092.7,0.17139004]
[1617403647691,64.7087,2092.9,2092.8,58.2157]
[1617403648094,64.7087,2092.9,2092.8,59.8049]
[1617403648292,64.7087,2092.9,2092.8,59.97615981]
[1617403649593,67.61565,2092.9,2092.8,59.97615981]
[1617403651499,67.61565,2092.9,2092.8,58.38695981]
[1617403652699,67.61565,2092.9,2092.8,0.17125981]
[1617403653302,67.61565,2092.9,2092.7,0.17116263]
[1617403656301,64.7087,2092.9,2092.7,0.17116263]
[1617403657503,64.7087,2092.9,2092.8,6.06941474]
[1617403658304,64.7087,2092.9,2092.8,6.24053534]
[1617403659505,64.7087,2092.9,2092.8,0.1711206]
[1617403659706,67.61565,2092.9,2092.8,0.1711206]
[1617403660307,67.61565,2092.9,2092.8,6.23871663]
[1617403662310,67.61565,2092.9,2092.8,0.1711206]
[1617403663111,67.61565,2092.9,2092.8,6.2385464]
[1617403664712,64.7087,2092.9,2092.8,6.2385464]
[1617403665614,67.61565,2092.9,2092.8,6.2385464]
[1617403670117,64.7087,2092.9,2092.8,6.2385464]
[1617403670518,64.7087,2092.9,2092.8,0.1711206]
[1617403678521,64.7087,2092.9,2092.8,6.23639905]
[1617403679322,64.7087,2092.9,2092.8,0.1711206]
[1617403679921,64.7087,2092.9,2092.8,6.23837447]
[1617403681828,64.7087,2092.9,2092.8,0.1711206]
[1617403684129,4.86025,2093.1,2092.8,0.1711206]
[1617403684933,4.86025,2093.1,2092.9,4.96490253]
[1617403685134,4.86025,2093.1,2093.0,0.17139149]
[1617403686438,4.86025,2093.1,2092.6,8.97546752]
[1617403686439,4.86025,2093.1,2092.9,5.13661068]
[1617403686740,4.86025,2093.1,2093.0,0.17145004]
[1617403687640,2.90695,2093.1,2093.0,0.17145004]
[1617403690642,2.90695,2093.1,2093.0,6.24728954]
[1617403691041,74.84965,2093.1,2093.0,6.24728954]
[1617403692944,74.84965,2093.1,2093.0,0.17145004]
[1617403693344,74.84965,2093.1,2093.0,6.24794617]
[1617403701953,74.84965,2093.1,2093.0,0.17145004]
[1617403712567,57.4879,2094.5,2093.0,0.17145004]
[1617403712766,55.5926,2094.5,2093.0,1.61875004]
[1617403713166,55.5926,2094.5,2093.1,0.17191675]
[1617403713367,55.5926,2094.5,2093.6,4.97926971]
[1617403713569,55.5926,2094.5,2093.6,6.53706971]
[1617403713768,55.5926,2094.5,2093.7,0.17188559]
[1617403713972,55.5926,2094.5,2093.8,4.97631582]
[1617403714167,55.5926,2094.5,2093.8,7.88326582]
[1617403714568,55.5926,2094.5,2093.9,0.17186614]
[1617403714768,55.5926,2094.5,2093.9,5.14670621]
[1617403715369,55.5926,2094.5,2094.0,0.17185646]
[1617403715569,55.5926,2094.5,2094.0,5.14691878]
[1617403715870,30.0,2094.8,2094.0,5.14691878]
[1617403716070,30.0,2094.8,2094.2,2.90695]
[1617403716469,30.0,2094.8,2094.3,0.17185067]
[1617403717570,0.959,2095.2,2094.3,0.17185067]
[1617403718174,2.90695,2094.4,2094.3,0.17185067]
[1617403729992,75.9588,2095.3,2094.3,0.17185067]
[1617403730195,75.9588,2095.3,2094.6,2.90695]
[1617403732195,2.90695,2094.7,2094.6,2.90695]
[1617403732996,2.90695,2094.7,2094.6,3.07789058]
[1617403736400,2.90695,2094.7,2094.6,2.90695]
[1617403736901,2.90695,2094.7,2094.6,3.0780532]
[1617403738001,2.90695,2094.7,2094.6,0.1711032]
[1617403738301,2.90695,2094.7,2094.4,2.90695]
[1617403738703,2.90695,2094.7,2094.6,0.17104586]
[1617403738902,2.90695,2094.7,2094.5,0.17104432]
[1617403739102,2.90695,2094.7,2094.6,0.17106042]
[1617403739804,2.90695,2094.7,2094.5,0.17106441]
[1617403744811,2.90695,2094.7,2094.5,5.15197165]
[1617403745011,12.0,2094.9,2094.5,5.15197165]
[1617403745212,12.0,2094.9,2094.6,4.98032228]
[1617403745415,12.0,2094.9,2094.6,5.1509181]
[1617403745817,12.0,2094.9,2094.7,0.17058505]
[1617403746417,12.0,2094.9,2094.8,2.90695]
[1617403746615,12.0,2094.9,2094.8,3.07748156]
[1617403747318,12.0,2094.9,2094.8,2.90695]
[1617403748417,14.90695,2094.9,2094.8,2.90695]
[1617403751121,12.0,2094.9,2094.8,2.90695]
[1617403751321,12.0,2094.9,2094.8,4.65895]
[1617403751521,12.0,2094.9,2094.8,4.82894306]
[1617403757930,12.0,2094.9,2094.8,2.90695]
[1617403758329,14.90695,2094.9,2094.8,2.90695]
[1617403759130,12.0,2094.9,2094.8,2.90695]
[1617403767746,12.0,2094.9,2094.8,3.07501637]
[1617403769049,12.0,2094.9,2094.8,4.99121637]
[1617403773856,12.0,2094.9,2094.8,3.07501637]
[1617403780866,12.0,2094.9,2094.8,4.43891637]
[1617403784774,12.0,2094.9,2094.8,5.40501637]
[1617403786277,12.0,2094.9,2094.8,4.43891637]
[1617403787379,12.0,2094.9,2094.8,5.39191637]
[1617403787579,12.0,2094.9,2094.8,4.43891637]
[1617403787779,12.0,2094.9,2094.8,3.07501637]
[1617403789282,12.0,2094.9,2094.8,4.64591637]
[1617403796791,11.0371,2094.9,2094.8,4.64591637]
[1617403797192,10.078,2094.9,2094.8,4.64591637]
[1617403798594,8.9453,2094.9,2094.8,4.64591637]
[1617403799196,8.7177,2094.9,2094.8,4.64591637]
[1617403799595,8.0309,2094.9,2094.8,4.64591637]
[1617403800096,7.9554,2094.9,2094.8,4.64591637]
[1617403800298,7.8299,2094.9,2094.8,4.64591637]
[1617403801599,7.7476,2094.9,2094.8,4.64591637]
[1617403804501,7.6382,2094.9,2094.8,4.64591637]
[1617403804702,2.6923,2094.9,2094.8,4.64591637]
[1617403804902,1.6496,2094.9,2094.8,4.64591637]
[1617403808407,1.6496,2094.9,2094.8,3.07501637]
[1617403809207,1.6496,2094.9,2094.8,10.18884892]
[1617403811813,54.4085,2095.7,2094.8,10.18884892]
[1617403812015,52.7428,2095.7,2094.8,10.18884892]
[1617403812216,52.0243,2095.7,2094.8,10.18884892]
[1617403812416,52.0243,2095.7,2095.5,4.92324318]
[1617403812817,52.0243,2095.7,2095.6,3.07494603]
[1617403814120,52.0243,2095.7,2095.6,7.99780806]
[1617403814520,52.0243,2095.7,2095.6,3.07494603]
[1617403815224,52.0243,2095.7,2095.6,7.99811865]
[1617403816225,52.0243,2095.7,2095.6,3.07494603]
[1617403818426,15.0,2096.4,2095.6,3.07494603]
[1617403818826,15.0,2096.4,2096.3,2.90695]
[1617403819025,15.0,2096.4,2096.3,3.07374007]
[1617403823434,15.0,2096.4,2096.3,4.52994007]
[1617403828640,13.117,2096.4,2096.3,4.52994007]